Cogmind - Beta 9.3 *** ADVENTURER MODE // 2019.12.28 @ 20:52:07 Player: Tengoo Result: Destroyed by G-47 Trooper with Particle Gun Performance ------------- Evolutions (0) 0 Regions Visited (1) 200 Robots Destroyed (27) 135 Value Destroyed (268) 268 Prototype IDs (2) 40 Alien Tech Used (0) 0 Bonus (0) 0 TOTAL SCORE: 643 Bonus ------- None Cogmind --------- Core Integrity 0/250 Matter 297/300 Energy 100/100 System Corruption 0% Temperature Cool (9) Movement Core (300) Ox5 Location -10/Materials Parts ------- > --- POWER (1) -------- (None) > --- PROPULSION (2) --- (None) > --- UTILITY (2) ------ Large Storage Unit Integration Mediator > --- WEAPON (2) ------- (None) > --- INVENTORY (10) --- Light Ion Engine Sensor Array Integration Mediator Mining Laser Peak State ------------ > --- POWER ------------ Light Nuclear Core > --- PROPULSION ------- Aluminum Leg Aluminum Leg > --- UTILITY ---------- Large Storage Unit Integration Mediator > --- WEAPON ----------- Light Assault Rifle Rocket Launcher > --- INVENTORY -------- Light Ion Engine Light Ion Engine Sensor Array Integration Mediator Mining Laser [Rating: 11] Favorites ----------- Power Light Ion Engine Engine Light Ion Engine Power Core Light Nuclear Core Propulsion Aluminum Leg Leg Aluminum Leg Utility Small Storage Unit Device Integration Mediator Storage Small Storage Unit Weapon Small Laser Energy Gun Small Laser Ballistic Gun Light Assault Rifle Launcher Rocket Launcher Special Weapon Mining Laser Build | -11 -10 ------- Run | Scr Mat Slots Evolved . | . . Power . | . . Propulsion . | . . Utility . | . . Weapon . | . . Parts Attached 14 | 6 8 Power 2 | 1 1 Engine 1 | 1 . Core 1 | . 1 Reactor . | . . Propulsion 2 | 2 . Treads . | . . Leg 2 | 2 . Wheel . | . . Hover . | . . Flight . | . . Utility 3 | 1 2 Device 1 | . 1 Storage 2 | 1 1 Processor . | . . Hackware . | . . Protection . | . . Artifact . | . . Weapon 7 | 2 5 Energy Gun 4 | 2 2 Energy Cannon . | . . Ballistic Gun 1 | . 1 Ballistic Cannon . | . . Launcher 1 | . 1 Special Weapon 1 | . 1 Impact Weapon . | . . Slashing Weapon . | . . Piercing Weapon . | . . Special Melee Weapon . | . . Unidentified Prototypes . | . . Parts Lost 5 | . 5 Power 1 | . 1 Propulsion 2 | . 2 Utility . | . . Weapon 2 | . 2 Highest Loss Streak 4 | . 4 Average Slot Usage (%) 87 | . 87 Engine 8 | . 8 Core 4 | . 4 Leg 24 | . 24 Device 13 | . 13 Storage 14 | . 14 Energy Gun 9 | . 9 Ballistic Gun 6 | . 6 Launcher 5 | . 5 Naked Turns . | . . Heaviest Build 28 | 9 28 Greatest Support 20 | 20 20 Greatest Overweight (x) 9 | . 9 Average Overweight (x) . | . . Largest Inventory Capacity 10 | 6 10 Average Capacity 7 | 5 8 Most Carried 5 | 2 5 Average Carried 2 | . 3 Final Capacity 10 | 6 10 Final Carried 4 | 1 4 Class Distribution -------------------- 100% | Mutant Dominant Class ---------------- Mutant | -10/Materials Resources | -11 -10 ----------- Run | Scr Mat Matter Collected 355 | 260 95 Remotely . | . . Salvage Created 698 | 350 348 Parts 56 | 31 25 Haulers Intercepted 1 | . 1 Recyclers Shooed 6 | 1 5 Parts Field Recycled . | . . Retrieved Matter . | . . Parts Self-Destructed . | . . Prevented . | . . Kills | -11 -10 ------- Run | Scr Mat Combat Hostiles Destroyed 8 | . 8 Guns 3 | . 3 AOE 5 | . 5 Classes Destroyed 8 | 3 5 Worker 4 | 4 . Builder 1 | . 1 Tunneler 8 | 8 . Hauler 1 | . 1 Recycler 3 | 1 2 Watcher 2 | . 2 Swarmer 6 | . 6 Grunt 2 | . 2 Best Kill Streak 5 | 3 5 Combat Bots Only 3 | . 3 Max Kills in Single Turn 4 | 1 4 Gunslinging . | . . Exploded 3 | . 3 Melee . | . . Uniques/NPCs Destroyed . | . . Combat | -11 -10 -------- Run | Scr Mat Damage Taken 750 | . 750 Core 258 | . 258 Absorbed by Shields . | . . Core Remaining (%) 100 | 100 . Volleys Fired 59 | 22 37 Largest 2 | 2 2 Hottest 130 | 80 130 Shots Fired 92 | 44 48 Gun 85 | 44 41 Cannon . | . . Launcher 5 | . 5 Special 2 | . 2 Kinetic 19 | . 19 Thermal 68 | 44 24 Explosive 5 | . 5 Electromagnetic . | . . Robot Hit Streak 12 | 11 12 Robot Miss Streak 3 | 2 3 Penetration Max . | . . Secondary Targets 1 | . 1 Max Gunslinging Chain 1 | . 1 Shots Hit Robots 61 | 30 31 Core Hits 34 | 14 20 Critical Hits . | . . Critical Kills . | . . Critical Parts Destroyed . | . . Melee Attacks . | . . Impact . | . . Slashing . | . . Piercing . | . . Sneak Attacks . | . . Combat Hostiles . | . . Follow-up Attacks . | . . Damage Inflicted 1112 | 321 791 Guns 627 | 321 306 Cannons . | . . Explosions 434 | . 434 Melee . | . . Ramming 3 | . 3 Kinetic 130 | . 130 Thermal 545 | 321 224 Explosive 434 | . 434 Electromagnetic . | . . Impact . | . . Slashing . | . . Piercing . | . . Highest Corruption . | . . Average Corruption . | . . Corruption Purged . | . . Overload Shots . | . . Overflow Damage 2 | . 2 Projectiles . | . . Explosions 2 | . 2 Melee . | . . Knockbacks . | . . Impact . | . . Kinetic . | . . Secondary . | . . Self-Inflicted Damage 71 | . 71 Shots 4 | . 4 Rammed 3 | . 3 Targets Rammed 3 | . 3 Kicked . | . . Crushed . | . . Highest Temperature 519 | 36 519 Average Temperature 101 | 13 191 Received Heat Transfer 369 | . 369 Effects 9 | . 9 Shutdowns 2 | . 2 Matter Decay 1 | . 1 Short Circuit 2 | . 2 Damage (major) 4 | . 4 Siege Activations . | . . Robots Corrupted . | . . Combat Hostiles . | . . Parts Fried . | . . Impact Corruptions . | . . Robots Melted . | . . Combat Hostiles . | . . Parts Melted . | . . Heat Transferred 1270 | 750 520 Parts Sabotaged . | . . Parts Stolen . | . . Parts Stripped . | . . Power Chain Reactions . | . . Missiles Intercepted . | . . Alert | -11 -10 ------- Run | Scr Mat Peak Influence 172 | 65 172 Average Influence 40 | 27 49 Maximum Alert Level . | . . Low Security (%) 100 | 100 100 Level 1 . | . . Level 2 . | . . Level 3 . | . . Level 4 . | . . Level 5 . | . . High Security . | . . Max Security . | . . Squads Dispatched . | . . Investigation . | . . Extermination . | . . Reinforcement . | . . Assault . | . . Garrison . | . . Intercept . | . . Construction Impeded . | . . Haulers Reinforced . | . . Stealth | -11 -10 --------- Run | Scr Mat Distress Signals 1 | . 1 Communications Jammed . | . . Distress Signals . | . . Times Spotted 16 | . 16 Peak Tracking Total 3 | . 3 Tactical Retreats . | . . Traps | -11 -10 ------- Run | Scr Mat Traps Triggered 1 | . 1 Indirectly . | . . Trap Hack Attempts . | . . Triggered . | . . Disarmed . | . . Reprogrammed . | . . Reused . | . . Traps Extracted . | . . Installed . | . . Triggered . | . . Machines | -11 -10 ---------- Run | Scr Mat Machines Disabled 1 | . 1 Max in Single Turn 1 | . 1 Machines Sabotaged . | . . Garrisons Compromised . | . . Overloaded Fab Kills . | . . Fab Network Shutdowns . | . . Hacking | -11 -10 --------- Run | Scr Mat Machines Accessed 2 | . 2 Terminals 2 | . 2 Fabricators . | . . Repair Stations . | . . Recycling Units . | . . Scanalyzers . | . . Garrison Access . | . . Total Hacks 7 | . 7 Successful 7 | . 7 Failed . | . . Catastrophic . | . . Database Lockouts . | . . Manual . | . . Terminals 7 | . 7 Fabricators . | . . Repair Stations . | . . Recycling Units . | . . Scanalyzers . | . . Garrison Access . | . . Terminal Hacks 7 | . 7 Record 2 | . 2 Prototype ID Bank 1 | . 1 Scanalyzer Index 1 | . 1 Locate Traps 2 | . 2 Hauler Manifests 1 | . 1 Fabricator Hacks . | . . Repair Station Hacks . | . . Recycling Unit Hacks . | . . Scanalyzer . | . . Garrison Access Hacks . | . . Unauthorized Hacks . | . . Terminals . | . . Fabricators . | . . Repair Stations . | . . Recycling Units . | . . Scanalyzers . | . . Garrison Access . | . . Data Cores Recovered . | . . Used . | . . Hacking Detections 2 | . 2 Full Trace Events . | . . Feedback Events . | . . Feedback Blocked . | . . Robot Schematics Acquired . | . . Robots Built . | . . Matter . | . . Time . | . . Total Robot Build Rating . | . . Part Schematics Acquired . | . . Parts Built . | . . Matter . | . . Time . | . . Total Part Build Rating . | . . Parts Repaired . | . . Time . | . . Parts Recycled . | . . Recycled Matter . | . . Retrieved Matter . | . . Retrieved Components . | . . Parts Scanalyzed . | . . Part Schematics Acquired . | . . Parts Damaged . | . . Bothacking | -11 -10 ------------ Run | Scr Mat Used RIF Installer . | . . Robots Hacked . | . . Non-combat . | . . Combat . | . . Robot Hacks Applied . | . . Relay Couplers Released . | . . Robots Rewired . | . . Allies Hacked . | . . Hacks Repelled . | . . Allies | -11 -10 -------- Run | Scr Mat Total Allies . | . . Largest Group . | . . Highest-Rated Group . | . . Highest-Rated Ally . | . . Total Orders . | . . Ally Attacks . | . . Total Damage . | . . Kills . | . . Allies Corrupted . | . . Allies Melted . | . . Intel | -11 -10 ------- Run | Scr Mat Robot Analysis Total . | . . Derelict Logs Recovered . | . . Drone Launches . | . . Drone Recoveries . | . . Exploration | -11 -10 ------------- Run | Scr Mat Turns Passed 1129 | 453 676 Spaces Moved 673 | 315 358 Core 20 | 5 15 Treads . | . . Legs 653 | 310 343 Wheels . | . . Hover . | . . Flight . | . . Fastest Speed 50 | 50 120 Average Speed 134 | 118 147 Slowest Speed 500 | 120 500 Overloaded Moves . | . . Propulsion Burnouts . | . . Robots Hopped . | . . Cave-ins Triggered . | . . Exploration Rate (%) 32 | 14 51 Regions Visited 1 Branch Regions . Pre-discovered Areas . | . . Known Exits Taken . | . . Unknown Exits Taken 1 | 1 . Scrap Searched . | . . Spaces Dug . | . . Terrain Destroyed 29 | . 29 Melee . | . . Projectile . | . . AOE 29 | . 29 Actions | -11 -10 --------- Run | Scr Mat Total 804 | 349 455 Wait 33 | . 33 Move 672 | 314 358 Hop . | . . Pick Up 17 | 7 10 Fast Attach . | . . Attach 9 | 6 3 Detach . | . . Swap 5 | . 5 Drop 6 | . 6 Fire 59 | 22 37 Melee . | . . Ram 1 | . 1 Kick 2 | . 2 Crush . | . . Escape Stasis . | . . Rewire . | . . Trap . | . . Miscellaneous . | . . Route ------- -11/Scrapyard -10/Materials (discovered 1 exit: [*Mat]) History --------- Turn | Location | Event 3 | -11/Scrapyard | Discovered new exit (range 15) 454 | -11/Scrapyard | Entered Materials 455 | -10/Materials | Build established: Mutant 716 | -10/Materials | Discovered new exit (range 11) 1106 | -10/Materials | Core integrity fell below 50% 1121 | -10/Materials | Lost 4 parts (1p1n2w) 1124 | -10/Materials | Core integrity fell below 20% 1130 | -10/Materials | Destroyed by G-47 Trooper with Particle Gun Last Messages --------------- U-05 Engineer lays Concrete. W-16 Scout destroyed. U-05 Engineer lays Concrete. U-05 Engineer builds a Wall. K-01 Serf collects debris. U-05 Engineer builds a Wall. K-01 Serf collects debris. Rocket Launcher destroyed. K-01 Serf collects debris. Lgt. Assault Rifle destroyed. U-05 Engineer builds a Wall. K-01 Serf collects debris. U-05 Engineer lays Concrete. K-01 Serf collects debris. Lgt. Nuclear Core destroyed. U-05 Engineer lays Concrete. U-05 Engineer builds a Wall. Slammed into K-01 Serf. U-05 Engineer builds a Wall. U-05 Engineer lays Concrete. Map ----- +----------------------------------------------------+ | ??????????????????? ??????????????????????? | | ?????????????????? ^????????????????????? | | ?????????????????? ^ ????????????????????? | | ?????????????????? ?????????????????????? | | ?????????????????? ????????????????????? | | ?????????????????? ^"""?? ????????????????? | | ######???????????? """ ????????????????? | | [ #???????????? """ ??? ?????????????? | | ############# ? ????????????? | | ## ???????????? | | ## """ ?????????????? | | "## """ """ #??????????????? | | T## """ """ #??????????????? | | "##!! """ ^ #??????????????? | | ##! +??????????????? | | #+##### """ #??????????????? | | """ #??????????????? | | ############ """ #??????????????? | | #??????????# #####??????????? | | #### #??????????# #??????????? | | ???# #??????????# #??????????? | | ???# #??????????# ######### #??????????? | | ???# #??????????# #########?????????????? | | #### #??????????# # / #? #??????????? | | ## ########???# # # #??????????? | | #???# #u @ #??????????? | | #???# # u ! #??????????? | | ##### # %! # #??????????? | | ####### ##### # gg # #??????????? | | ###????# + #??????????? | | ???????## % # # #??????????? | | ???????# %%= # + + ????????? | | ???????# ######+########## ####???????? | | ?? T # #???????? #??????????? | | ?"" # """ #?????????#??????????? | | """ + + """ #????????????????????? | | ?"" # # """ #????????????????????? | | ?# < # #????????????????????? | | ??# # """ #????????????????????? | | ???##### """ #????????????????????? | | ????????# """ #????????????????????? | | #" ?????????# #????????????????????? | | ?"??????????######?###????????????????????? | | ??????????????????????????????????????????? | | ??????????????????????????????????????????? | | ??????????????????????????????????????????? | | ??????????????????????????????????????????? | | ??????????????????????????????????????????? | | ??????????????????????????????????????????? | | ??????????????????????????????????????????? | +----------------------------------------------------+ Best States ------------- Heat Dissipation 25 Energy Generation 14 Energy Capacity 160 Matter Stores 300 Matter Capacity 300 Sight Range 16 Terrain Scan Density 10 Resistance: KI 20 Resistance: TH 20 Resistance: EX 20 Resistance: EM 20 Resistance: I 20 Resistance: S 20 Resistance: P 20 Evasion (%) 40 Offensive Hacking 10 Item Schematics ----------------- None Robot Schematics ------------------ None Fabricated ------------ Nothing Alien Tech Used ----------------- None Achievements -------------- None Challenges ------------ None Game ------ Seed AccelerationCombatStreamer Manual? 0 Play Time 00:13:01 Cumulative 5.3 hours Start 2019.12.28 @ 20:39:31 End 2019.12.28 @ 20:52:07 Sessions 1 Manual Loads 0 Difficulty Adventurer Special Mode None Game No. 8 Rogue 0 Adventurer 8 Explorer 0 Win Type - Total 0 Types 0/0/0/0/0/0/0 Lore% 15 Gallery% 9 Achievement% 9 Wizard Run 0 Options --------- ASCII 0 Keyboard 0 Movement Arrows Keybinds 0 Fullscreen 1 Font 16/Terminus Map View 76x50 Tactical HUD 0 Map Filters NONE Filters NONE Steam 1 RUN: 4edef0d6-9f78-4c81-a19d-64c9b50453f6